bitfinex/quotes_SOLUSD_20240916
["timestamp","ask_amount","ask_price","bid_price","bid_amount"]
[1726516359415,7.6017,131.55,131.52,37.6033]
[1726516359637,7.6017,131.55,131.51,7.6037]
[1726516360833,7.6017,131.55,131.52,7.6033]
[1726516361051,31.378184,131.56,131.52,7.6033]
[1726516361341,7.6017,131.55,131.52,7.6033]
[1726516361521,7.6017,131.55,131.51,7.6037]
[1726516362035,6.5882,131.57,131.53,19.0057]
[1726516362251,6.5882,131.57,131.5,26.6143]
[1726516362252,7.6026,131.54,131.5,26.6143]
[1726516362938,7.6029,131.53,131.5,19.0099]
[1726516363232,15.8058,131.55,131.5,26.6144]
[1726516363233,7.6024,131.54,131.5,26.6144]
[1726516363436,23.776884,131.53,131.5,26.6144]
[1726516365737,23.4075,131.55,131.52,7.6031]
[1726516365932,23.4075,131.55,131.51,7.6037]
[1726516366310,7.6022,131.54,131.51,7.6037]
[1726516366540,7.6028,131.53,131.5,19.0099]
[1726516367038,23.776884,131.52,131.5,19.0099]
[1726516367735,7.6025,131.54,131.5,26.6144]
[1726516367942,7.6025,131.54,131.46,32.21181694]
[1726516367943,7.6068,131.46,131.45,0.2547471]
[1726516368125,16.1826,131.5,131.45,0.2547471]
[1726516368315,23.776884,131.48,131.45,0.2547471]
[1726516368641,31.382584,131.48,131.45,0.2547471]
[1726516368855,7.6065,131.47,131.45,0.2547471]
[1726516369060,23.776884,131.48,131.45,0.2547471]
[1726516369061,7.6068,131.46,131.45,0.2547471]
[1726516369363,31.383684,131.46,131.45,0.2547471]
[1726516369652,57.936084,131.46,131.45,0.2547471]
[1726516370027,57.936084,131.46,131.41,0.2547471]
[1726516370028,7.6091,131.42,131.41,0.2547471]
[1726516370240,31.385984,131.42,131.41,0.2547471]
[1726516372848,23.776884,131.42,131.41,0.2547471]
[1726516373435,7.6079,131.45,131.41,0.2547471]
[1726516373633,20.0,131.44,131.41,0.2547471]
[1726516373854,20.0,131.44,131.41,7.8643471]
[1726516374042,20.0,131.44,131.41,0.2547471]
[1726516374555,22.3305,131.46,131.42,19.0228]
[1726516374761,43.776884,131.45,131.42,19.0228]
[1726516375075,29.9373,131.46,131.42,19.0228]
[1726516375268,7.6074,131.45,131.41,0.2547471]
[1726516375438,7.6074,131.45,131.41,7.8643471]
[1726516376354,31.384884,131.44,131.41,0.2547471]
[1726516377144,23.776884,131.44,131.41,0.2547471]
[1726516377344,7.6087,131.43,131.41,0.2547471]
[1726516377746,31.385984,131.42,131.41,0.2547471]
[1726516380666,23.776884,131.42,131.41,0.2547471]
[1726516380834,23.776884,131.43,131.41,0.2547471]
[1726516381546,31.385984,131.42,131.41,0.2547471]
[1726516382965,23.776884,131.42,131.41,0.2547471]
[1726516383642,31.385984,131.42,131.41,0.2547471]
[1726516384556,23.776884,131.42,131.41,0.2547471]
[1726516384968,7.6084,131.44,131.41,0.2547471]
[1726516386364,23.776884,131.43,131.41,0.2547471]
[1726516386864,31.385584,131.43,131.41,0.2547471]
[1726516387366,31.385984,131.42,131.41,0.2547471]
[1726516390468,43.776884,131.45,131.41,0.2547471]
[1726516390670,7.6084,131.44,131.41,0.2547471]
[1726516390857,23.776884,131.43,131.41,0.2547471]
[1726516391869,7.6086,131.43,131.41,0.2547471]
[1726516392570,23.776884,131.44,131.41,7.8642471]
[1726516392744,31.384884,131.44,131.41,0.2547471]
[1726516393349,23.776884,131.42,131.41,0.2547471]
[1726516394864,31.385984,131.42,131.41,0.2547471]
[1726516396751,51.385984,131.42,131.41,0.2547471]
[1726516399764,27.6091,131.42,131.41,0.2547471]
[1726516400678,20.0,131.42,131.41,0.2547471]
[1726516401191,7.6087,131.43,131.41,0.2547471]
[1726516402392,23.776884,131.42,131.41,0.2547471]
[1726516402594,7.6082,131.44,131.41,0.2547471]
[1726516402881,23.776884,131.43,131.41,0.2547471]
[1726516403886,7.6075,131.45,131.41,0.2547471]
[1726516404185,7.6071,131.46,131.41,0.2547471]
[1726516404369,7.6066,131.47,131.43,26.6299]
[1726516404571,7.6073,131.46,131.42,7.6087]
[1726516404757,7.6066,131.47,131.43,7.6082]
[1726516404955,7.6052,131.49,131.46,7.6068]
[1726516405262,6.524,131.52,131.47,7.6062]
[1726516405263,7.6048,131.5,131.47,7.6062]
[1726516406587,6.524,131.52,131.48,7.6056]
[1726516407292,14.1279,131.52,131.48,7.6056]
[1726516407487,7.604,131.51,131.48,7.6056]
[1726516407895,6.8680471,131.55,131.5,7.6045]
[1726516408267,6.8680471,131.55,131.49,19.0126]
[1726516409302,7.6034,131.52,131.49,19.0126]
[1726516411071,7.603,131.53,131.49,26.6177]
[1726516411272,23.776884,131.52,131.49,26.6177]
[1726516414507,31.381484,131.5,131.47,7.6062]
[1726516414808,7.6046,131.5,131.46,26.6226]
[1726516414985,23.776884,131.49,131.46,26.6226]
[1726516417013,23.776884,131.49,131.42,6.5308]
[1726516417014,7.606,131.48,131.43,73.6054]
[1726516417199,7.606,131.48,131.45,7.6073]
[1726516418312,31.382184,131.49,131.45,7.6073]
[1726516430097,7.6057,131.48,131.44,7.6078]
[1726516430416,7.6058,131.48,131.43,35.5638]
[1726516430908,7.6058,131.48,131.44,7.6076]
[1726516431422,7.6058,131.48,131.43,35.5638]
[1726516431423,7.6058,131.48,131.45,7.6073]
[1726516431919,23.776884,131.5,131.45,7.6073]
[1726516431920,7.6053,131.49,131.45,7.6073]
[1726516432123,23.776884,131.48,131.46,7.6068]
[1726516432523,23.776884,131.48,131.45,26.6257]
[1726516432699,7.6046,131.5,131.46,7.6068]
[1726516432901,27.6041,131.51,131.47,26.6214]
[1726516434026,23.776884,131.51,131.47,19.0153]
[1726516434230,7.6036,131.52,131.48,7.6055]
[1726516435907,6.8680471,131.55,131.48,7.6055]
[1726516436108,23.776884,131.54,131.49,19.0126]
[1726516437141,31.379484,131.54,131.5,7.6044]
[1726516440525,7.6031,131.53,131.49,26.6176]
[1726516440745,7.6024,131.54,131.5,7.6044]
[1726516441041,23.776884,131.53,131.5,7.6044]
[1726516443236,7.8566471,131.55,131.51,7.6039]
[1726516443524,0.2547471,131.55,131.51,34.60437816]
[1726516443828,0.2547471,131.55,131.53,26.6092]
[1726516444028,0.2547471,131.55,131.54,7.6022]
[1726516447325,0.2547471,131.55,131.53,26.6093]
[1726516450536,0.2547471,131.55,131.51,7.6034]
[1726516450834,7.6022,131.54,131.5,26.6143]
[1726516452819,7.8566471,131.55,131.51,7.6039]
[1726516453410,7.8566471,131.55,131.52,7.6033]
[1726516453609,7.8566471,131.55,131.51,7.6037]
[1726516453827,0.2547471,131.55,131.52,7.6033]
[1726516456144,7.8563471,131.55,131.51,7.6037]
[1726516457206,7.8563471,131.55,131.51,9.12341202]
[1726516457413,7.8563471,131.55,131.51,7.6037]
[1726516458014,7.6022,131.54,131.51,7.6037]
[1726516458219,7.6022,131.54,131.5,26.6142]
[1726516458422,7.6029,131.53,131.5,26.6142]
[1726516458720,7.6029,131.53,131.48,35.0994]
[1726516459044,7.6029,131.53,131.5,7.6044]
[1726516459726,7.6024,131.54,131.5,7.6044]
[1726516459927,23.776884,131.53,131.5,7.6044]
[1726516461028,23.776884,131.53,131.5,26.6157]
[1726516462440,7.8566471,131.55,131.51,1.52069739]
[1726516462747,0.2547471,131.55,131.53,7.6025]
[1726516463243,0.2547471,131.55,131.54,9.12187302]
[1726516465027,0.2547471,131.55,131.54,7.6022]
[1726516465224,0.2547471,131.55,131.53,26.608]
[1726516465545,0.2547471,131.55,131.53,19.0056]
[1726516466843,7.8567471,131.55,131.51,7.6039]
[1726516467219,7.8567471,131.55,131.52,7.6033]
[1726516467544,0.2547471,131.55,131.52,7.6033]
[1726516468633,0.2547471,131.55,131.53,7.6026]
[1726516473558,0.2547471,131.55,131.52,28.13122747]
[1726516473841,7.8564471,131.55,131.51,7.6039]
[1726516474829,7.6027,131.54,131.49,19.0114]
[1726516475043,7.6027,131.54,131.5,7.6044]
[1726516475423,7.6027,131.54,131.51,7.6039]
[1726516476547,7.6027,131.54,131.5,7.6044]
[1726516476849,6.4833,131.54,131.46,15.59547816]
[1726516477029,31.380284,131.52,131.48,26.6196]
[1726516478942,31.380284,131.52,131.45,31.45477816]
[1726516478943,7.604,131.51,131.47,7.6061]
[1726516479150,7.6045,131.5,131.46,7.6067]
[1726516480332,23.776884,131.52,131.47,19.0153]
[1726516480729,31.380284,131.52,131.48,7.6053]
[1726516482149,23.776884,131.52,131.49,7.6047]
[1726516482346,7.6029,131.53,131.49,7.6047]
[1726516484033,7.6034,131.52,131.49,7.6047]
[1726516485356,7.6034,131.52,131.48,7.6054]
[1726516486356,7.6034,131.52,131.49,7.605]
[1726516488340,6.4833,131.54,131.5,7.6043]
[1726516488966,23.776884,131.53,131.48,19.0128]
[1726516489144,7.6038,131.52,131.48,26.6179]
[1726516489461,31.379884,131.53,131.49,7.6049]
[1726516490358,34.6082471,131.55,131.51,7.6037]
[1726516490359,15.6036471,131.55,131.51,7.6037]
[1726516490567,23.2056471,131.55,131.51,7.6037]
[1726516491540,7.8567471,131.55,131.51,7.6037]
[1726516497644,31.379484,131.54,131.5,26.6153]
[1726516497850,7.6037,131.52,131.48,7.6055]
[1726516498244,7.6037,131.52,131.49,7.6051]
[1726516500353,20.2547471,131.55,131.49,7.6045]
[1726516500550,20.2547471,131.55,131.48,15.59547816]
[1726516500753,20.2547471,131.55,131.51,7.6037]
[1726516500953,7.8569471,131.55,131.51,7.6037]
[1726516501158,7.6022,131.54,131.51,7.6037]
[1726516501671,7.8566471,131.55,131.51,7.6037]
[1726516501985,7.6022,131.54,131.51,7.6037]
[1726516502275,7.6028,131.53,131.5,26.6147]
[1726516502861,7.6028,131.53,131.46,38.0333]
[1726516502862,24.0316311,131.55,131.52,19.0073]
[1726516503057,31.6333311,131.55,131.52,19.0073]
[1726516503663,7.6027,131.54,131.49,19.0117]
[1726516504471,7.6027,131.54,131.51,7.6039]
[1726516504671,31.6334311,131.55,131.51,7.6039]
[1726516507081,0.2547471,131.55,131.53,7.6027]
[1726516507869,0.2547471,131.55,131.54,9.11918557]
[1726516508085,0.2547471,131.55,131.54,24.71466373]
[1726516508393,0.2547471,131.55,131.54,23.19767816]
[1726516508763,0.2547471,131.55,131.54,24.71446511]
[1726516508979,0.2547471,131.55,131.54,23.19767816]
[1726516509186,0.2547471,131.55,131.54,38.40117816]
[1726516509396,0.2547471,131.55,131.54,39.91750387]
[1726516509678,0.2547471,131.55,131.54,38.40117816]
[1726516509985,0.2547471,131.55,131.54,39.91750386]
[1726516510290,0.2547471,131.55,131.54,38.40117816]
[1726516510492,0.2547471,131.55,131.54,58.40117816]
[1726516511884,0.2547471,131.55,131.54,59.92098383]
[1726516512683,0.2547471,131.55,131.54,58.40117816]
[1726516514168,0.2547471,131.55,131.54,59.92098718]
[1726516514380,0.2547471,131.55,131.54,58.40117816]
[1726516516187,0.2547471,131.55,131.54,59.92052543]
[1726516517293,0.2547471,131.63,131.58,46.5997]
[1726516517466,0.2547471,131.63,131.58,62.19517816]
[1726516517772,0.2547471,131.63,131.58,63.7144493]
[1726516517971,0.2547471,131.63,131.58,62.19517816]
[1726516518987,0.2547471,131.63,131.58,63.42706161]
[1726516519393,0.2547471,131.63,131.58,62.19517816]
[1726516519572,0.2547471,131.63,131.58,26.5997]
[1726516520196,7.8519471,131.63,131.58,26.5997]
[1726516520495,7.5989,131.6,131.56,7.6005]
[1726516520998,7.6003,131.58,131.54,7.6021]
[1726516521874,31.6311311,131.59,131.55,7.6013]
[1726516522399,24.0316311,131.59,131.56,19.0022]
[1726516522578,0.2547471,131.59,131.56,19.0022]
[1726516523571,0.2547471,131.59,131.56,26.6028]
[1726516525369,0.2547471,131.59,131.57,7.6002]
[1726516526204,0.2547471,131.59,131.56,19.0022]
[1726516527196,0.2547471,131.59,131.58,7.5999]
[1726516532081,0.2547471,131.59,131.58,26.5997]
[1726516533198,0.2547471,131.59,131.58,42.19517816]
[1726516533376,0.2547471,131.59,131.58,62.19517816]
[1726516534900,0.2547471,131.59,131.58,46.5997]
[1726516535207,0.2547471,131.59,131.58,26.5997]
[1726516542010,0.2547471,131.59,131.58,42.19517816]
[1726516543203,0.2547471,131.59,131.58,26.5997]
[1726516544211,0.2547471,131.59,131.57,7.6002]
[1726516544411,0.2547471,131.59,131.55,19.0028]
[1726516544589,7.6003,131.58,131.54,7.6022]
[1726516545092,0.2547471,131.59,131.56,7.6007]
[1726516545302,0.2547471,131.59,131.56,26.6034]
[1726516545688,7.8541471,131.59,131.56,26.6034]
[1726516545908,7.8541471,131.59,131.56,19.0025]
[1726516546484,7.8541471,131.59,131.55,7.6014]
[1726516548014,7.6005,131.57,131.54,7.6021]
[1726516548310,7.6011,131.56,131.53,26.6084]
[1726516548699,7.6007,131.57,131.53,26.6084]
[1726516549907,7.6015,131.56,131.52,7.6031]
[1726516550109,14.0655,131.56,131.52,7.6031]
[1726516550409,7.6017,131.55,131.52,7.6031]
[1726516550788,7.6017,131.55,131.51,7.6037]
[1726516551291,6.464,131.56,131.5,19.0102]
[1726516551292,31.379184,131.54,131.5,26.6145]
[1726516551502,7.6038,131.52,131.47,35.0446]
[1726516551700,7.6038,131.52,131.48,7.6052]
[1726516552614,7.604,131.51,131.47,26.6208]
[1726516552809,7.6035,131.52,131.48,7.6056]
[1726516553014,23.776884,131.51,131.48,7.6056]
[1726516555389,31.380784,131.51,131.47,26.6208]
[1726516555596,23.776884,131.51,131.47,19.0147]
[1726516556399,16.1848,131.52,131.48,1.20096927]
[1726516557321,16.1848,131.52,131.49,7.605]
[1726516558009,43.776884,131.53,131.5,7.6044]
[1726516559106,31.379084,131.54,131.5,7.6044]
[1726516559308,7.6028,131.53,131.49,26.6173]
[1726516559606,23.776884,131.52,131.49,26.6173]
[1726516559999,31.379784,131.53,131.49,26.6171]
[1726516561317,7.6037,131.52,131.48,7.6056]
[1726516561520,23.776884,131.51,131.48,7.6056]
[1726516561823,23.776884,131.52,131.49,7.6051]
[1726516562124,7.6029,131.53,131.47,15.59547816]
[1726516562125,7.6024,131.54,131.51,7.6039]
[1726516562326,7.6024,131.54,131.5,26.6154]
[1726516563628,23.6101,131.55,131.51,7.6038]
[1726516564496,23.6101,131.55,131.52,7.6033]
[1726516564895,16.0083,131.55,131.52,7.6033]
[1726516566435,23.61,131.55,131.52,7.6033]
[1726516567424,23.776884,131.54,131.51,7.6037]
[1726516567808,7.6032,131.53,131.5,19.011]
[1726516568213,23.776884,131.54,131.51,7.6036]
[1726516568631,31.379084,131.54,131.5,26.6153]
[1726516569923,7.6029,131.53,131.5,26.6153]
[1726516570505,7.6029,131.53,131.5,19.011]
[1726516570829,23.776884,131.52,131.49,7.6049]
[1726516571832,31.380284,131.52,131.49,7.6049]
[1726516572132,23.776884,131.52,131.49,7.6049]
[1726516573911,31.380484,131.52,131.48,26.6195]
[1726516574725,31.380484,131.52,131.49,7.6049]
[1726516575439,31.380484,131.52,131.48,26.6196]
[1726516579429,7.604,131.51,131.48,19.0141]
[1726516579612,23.776884,131.52,131.47,7.6061]
[1726516580022,23.776884,131.52,131.45,0.2547471]
[1726516580023,30.312684,131.51,131.46,26.6225]
[1726516580226,7.6056,131.49,131.46,19.0159]
[1726516580530,23.776884,131.48,131.46,19.0159]
[1726516580729,7.6061,131.48,131.45,0.2547471]
[1726516580919,23.776884,131.49,131.45,0.2547471]
[1726516582111,31.382184,131.49,131.45,7.8617471]
[1726516583331,23.776884,131.49,131.46,19.0163]
[1726516583537,6.5358,131.51,131.48,7.6057]
[1726516583718,6.5358,131.51,131.5,7.6045]
[1726516583926,16.3251,131.53,131.48,19.0134]
[1726516584445,16.3251,131.53,131.5,7.6045]
[1726516584909,6.0469,131.54,131.51,7.6039]
[1726516585741,6.0469,131.54,131.5,19.011]
[1726516585919,13.6492,131.54,131.5,26.6154]
[1726516586437,23.776884,131.53,131.5,26.6154]
[1726516586812,23.346,131.56,131.52,7.6034]
[1726516587209,6.5922,131.57,131.53,19.0065]
[1726516587626,6.5922,131.57,131.54,7.6021]
[1726516589018,23.776884,131.56,131.54,7.6021]
[1726516589214,23.776884,131.56,131.53,26.6092]
[1726516589723,31.377984,131.56,131.52,7.6032]
[1726516590125,23.776884,131.56,131.52,7.6032]
[1726516592036,23.776884,131.56,131.53,7.6027]
[1726516594647,23.776884,131.56,131.52,19.0074]
[1726516595027,23.5993471,131.59,131.54,26.6071]
[1726516595231,31.376884,131.58,131.54,26.6071]
[1726516596436,23.776884,131.58,131.55,7.6015]
[1726516602457,31.376884,131.58,131.54,26.6071]
[1726516603864,7.6005,131.57,131.54,19.0051]
[1726516604034,23.776884,131.56,131.54,19.0051]
[1726516605059,31.377984,131.56,131.53,7.6026]
[1726516605468,23.776884,131.54,131.51,19.0086]
[1726516605773,23.776884,131.54,131.49,19.0127]
[1726516606751,23.776884,131.51,131.49,19.0127]
[1726516607173,23.776884,131.51,131.48,7.6053]
[1726516608033,23.776884,131.51,131.47,38.0294]
[1726516608238,23.776884,131.52,131.48,19.0138]
[1726516608655,23.776884,131.52,131.49,7.6049]
[1726516609239,31.380284,131.52,131.49,7.6049]
[1726516610456,23.776884,131.52,131.46,15.58436049]
[1726516610634,23.776884,131.5,131.48,7.6057]
[1726516611043,23.776884,131.51,131.48,7.6057]
[1726516613366,23.776884,131.52,131.49,7.6051]
[1726516614068,31.380284,131.52,131.49,7.6051]
[1726516614747,31.380284,131.52,131.48,7.6054]
[1726516618856,31.380284,131.52,131.47,19.0155]
[1726516619169,7.6024,131.54,131.5,7.6044]
[1726516619672,20.0,131.54,131.51,26.6132]
[1726516619857,27.6022,131.54,131.51,26.6132]
[1726516620049,27.6022,131.54,131.51,19.0098]
[1726516620474,23.776884,131.53,131.51,19.0098]
[1726516620776,31.379684,131.53,131.5,7.6043]
[1726516621153,23.776884,131.53,131.5,7.6043]
[1726516623959,7.6029,131.53,131.5,7.6043]
[1726516624168,23.776884,131.52,131.49,7.605]
[1726516624374,23.776884,131.51,131.45,19.2720471]
[1726516624789,23.776884,131.48,131.45,19.2720471]
[1726516624964,23.776884,131.47,131.45,0.2547471]
[1726516628093,23.776884,131.48,131.45,7.8617471]
[1726516630675,7.6057,131.48,131.45,0.2547471]
[1726516630882,23.776884,131.46,131.45,0.2547471]
[1726516631267,31.383684,131.46,131.45,0.2547471]
[1726516632286,51.383684,131.46,131.45,0.2547471]
[1726516640309,31.383684,131.46,131.45,0.2547471]
[1726516640600,51.383684,131.46,131.45,0.2547471]
[1726516646303,43.776884,131.46,131.45,0.2547471]
[1726516647007,23.776884,131.46,131.45,0.2547471]
[1726516647580,31.383684,131.46,131.45,0.2547471]
[1726516647981,23.776884,131.46,131.45,0.2547471]
[1726516648306,23.776884,131.46,131.45,7.8621471]
[1726516648494,7.6044,131.51,131.45,19.2729471]
[1726516648806,7.6046,131.5,131.46,7.6068]
[1726516649012,7.6041,131.51,131.46,7.6068]
[1726516649187,7.6052,131.49,131.45,19.2729471]
[1726516649385,7.6052,131.49,131.45,26.8802471]
[1726516649908,23.776884,131.48,131.45,26.8802471]
[1726516650405,23.776884,131.49,131.46,7.6067]
[1726516656804,31.381984,131.49,131.46,7.6067]
[1726516657004,31.381984,131.49,131.45,26.8802471]
[1726516657510,23.776884,131.49,131.45,0.2547471]
[1726516657990,23.776884,131.47,131.45,0.2547471]
[1726516660326,23.776884,131.47,131.45,7.8618471]
[1726516660490,23.776884,131.48,131.45,7.8618471]
[1726516662612,20.0,131.51,131.47,26.6219]
[1726516662917,7.6028,131.53,131.49,7.605]
[1726516664317,23.776884,131.52,131.48,15.58436049]
[1726516664818,23.776884,131.52,131.47,15.58436049]
[1726516665202,23.776884,131.53,131.49,7.6049]
[1726516666520,9.99869947,131.56,131.5,19.0109]
[1726516666815,6.039,131.57,131.5,34.59526049]
[1726516667015,7.6014,131.56,131.52,7.6033]
[1726516667429,7.6014,131.56,131.51,7.6038]
[1726516667724,7.6017,131.55,131.51,7.6038]
[1726516667921,23.776884,131.54,131.51,7.6038]
[1726516669808,31.379084,131.54,131.5,26.6153]
[1726516672525,23.776884,131.52,131.49,7.6049]
[1726516672734,23.776884,131.52,131.47,34.59886049]
[1726516672735,31.380284,131.52,131.48,7.6056]
[1726516674133,23.776884,131.5,131.47,26.6207]
[1726516674612,23.776884,131.5,131.47,19.0145]
[1726516675835,23.776884,131.51,131.47,19.0145]
[1726516676332,23.776884,131.51,131.48,7.6055]
[1726516679630,7.6032,131.53,131.49,26.6177]
[1726516680131,23.776884,131.52,131.49,26.6177]
[1726516685617,23.776884,131.52,131.5,7.6045]
[1726516685819,23.776884,131.53,131.5,7.6045]
[1726516686043,7.6018,131.55,131.5,34.59456049]
[1726516686340,7.6018,131.55,131.51,7.6037]
[1726516687736,7.6018,131.55,131.52,7.6031]
[1726516687941,23.776884,131.55,131.52,7.6031]
[1726516688115,7.6017,131.55,131.52,7.6031]
[1726516688519,7.6024,131.54,131.5,19.0102]
[1726516688738,23.776884,131.53,131.5,26.6145]
[1726516689250,23.776884,131.53,131.51,7.6038]
[1726516689545,23.776884,131.54,131.51,7.6038]
[1726516690444,31.379184,131.54,131.5,26.6144]
[1726516691145,23.776884,131.55,131.46,15.2511]
[1726516691347,23.776884,131.53,131.46,30.83546049]
[1726516691552,31.379784,131.53,131.49,7.605]
[1726516691851,31.379784,131.53,131.46,15.2511]
[1726516691852,23.776884,131.53,131.51,7.6038]
[1726516692051,23.776884,131.53,131.5,15.58436049]
[1726516692253,23.776884,131.53,131.5,7.6044]
[1726516692553,23.776884,131.54,131.5,7.6044]
[1726516692723,23.776884,131.54,131.51,7.6037]
[1726516692926,23.776884,131.55,131.51,7.6037]
[1726516694151,31.378684,131.55,131.5,26.6153]
[1726516695247,23.776884,131.53,131.47,34.59986049]
[1726516695428,23.776884,131.52,131.48,7.6052]
[1726516695626,31.380484,131.52,131.47,19.0155]
[1726516695844,23.776884,131.5,131.47,19.0155]
[1726516696025,23.776884,131.5,131.47,26.6217]
[1726516696224,23.776884,131.5,131.47,19.0155]
[1726516696852,23.776884,131.5,131.46,15.2511]
[1726516697349,23.776884,131.5,131.46,22.8579]
[1726516700284,15.2357,131.55,131.5,19.0108]
[1726516700556,23.66114713,131.59,131.5,19.0108]
[1726516700941,7.6015,131.56,131.51,7.6038]
[1726516701453,7.6016,131.55,131.51,7.6038]
[1726516701965,23.776884,131.54,131.51,7.6038]
[1726516702334,31.379084,131.54,131.5,26.6152]
[1726516704361,31.379084,131.54,131.5,19.0108]
[1726516707576,31.379084,131.54,131.5,26.6153]
[1726516708469,23.776884,131.54,131.5,26.6153]
[1726516709244,23.776884,131.54,131.51,7.6039]
[1726516711051,7.6031,131.53,131.47,40.98856049]
[1726516711260,23.776884,131.55,131.48,15.58436049]
[1726516711971,23.776884,131.53,131.49,26.6176]
[1726516713271,23.776884,131.53,131.5,7.6044]
[1726516714443,23.776884,131.53,131.49,26.6176]
[1726516714444,31.379684,131.53,131.49,26.6176]
[1726516718352,23.776884,131.51,131.49,19.0127]
[1726516720064,23.776884,131.51,131.49,26.6178]
[1726516720380,23.776884,131.52,131.49,26.6178]
[1726516720545,7.6022,131.54,131.5,7.6041]
[1726516721091,31.379684,131.53,131.49,26.6177]
[1726516723977,7.6056,131.49,131.46,15.2511]
[1726516724284,7.6059,131.48,131.45,0.2547471]
[1726516724451,31.383184,131.47,131.45,0.2547471]
[1726516725961,7.6068,131.46,131.45,0.2547471]
[1726516726276,31.383684,131.46,131.45,0.2547471]
[1726516727456,51.383684,131.46,131.45,0.2547471]
[1726516730266,51.383684,131.46,131.41,0.2547471]
[1726516730267,31.385984,131.42,131.41,0.2547471]
[1726516733574,51.385984,131.42,131.41,0.2547471]
[1726516734377,51.385984,131.42,131.37,0.2547471]
[1726516734378,23.776884,131.38,131.37,0.2547471]
[1726516735084,31.388384,131.38,131.37,0.2547471]
[1726516736186,23.776884,131.38,131.37,0.2547471]
[1726516741069,31.388384,131.38,131.37,0.2547471]
[1726516741275,23.776884,131.38,131.37,0.2547471]
[1726516742393,31.388384,131.38,131.37,0.2547471]
[1726516743270,23.776884,131.38,131.37,0.2547471]
[1726516743761,19.0247,131.41,131.37,0.2547471]
[1726516743762,7.6099,131.41,131.37,0.2547471]
[1726516743967,7.6099,131.41,131.37,7.8667471]
[1726516744203,7.6103,131.4,131.37,0.2547471]
[1726516744582,7.6109,131.39,131.37,0.2547471]
[1726516745180,31.388384,131.38,131.37,0.2547471]
[1726516746081,23.776884,131.38,131.37,0.2547471]
[1726516746494,31.388384,131.38,131.37,0.2547471]
[1726516747803,51.388384,131.38,131.37,0.2547471]
[1726516748583,67.199084,131.38,131.37,0.2547471]
[1726516749916,31.390684,131.34,131.33,0.2547471]
[1726516750284,51.390684,131.34,131.33,0.2547471]
[1726516753233,23.776884,131.34,131.33,0.2547471]
[1726516753609,31.390684,131.34,131.33,0.2547471]
[1726516754798,51.390684,131.34,131.33,0.2547471]
[1726516755403,57.815184,131.34,131.33,0.2547471]
[1726516755925,57.815184,131.34,131.29,0.2547471]
[1726516755926,7.6159,131.31,131.29,0.2547471]
[1726516756233,50.201384,131.34,131.29,0.2547471]
[1726516756234,31.392984,131.3,131.29,0.2547471]
[1726516759255,51.392984,131.3,131.29,0.2547471]
[1726516760642,22.6789,131.33,131.29,7.8713471]
[1726516760856,15.0645,131.33,131.29,0.2547471]
[1726516761150,7.6161,131.3,131.29,0.2547471]
[1726516761940,31.392984,131.3,131.29,0.2547471]
[1726516763742,23.776884,131.3,131.29,0.2547471]
[1726516764243,20.0,131.31,131.29,0.2547471]
[1726516764446,7.6161,131.3,131.29,0.2547471]
[1726516764839,20.0,131.31,131.29,0.2547471]
[1726516765027,20.0,131.32,131.29,0.2547471]
[1726516765651,23.776884,131.31,131.29,0.2547471]
[1726516765848,31.392984,131.3,131.29,0.2547471]
[1726516766153,51.392984,131.3,131.29,0.2547471]
[1726516766645,51.392984,131.3,131.25,0.2547471]
[1726516766646,31.395284,131.26,131.25,0.2547471]
[1726516767451,23.776884,131.26,131.25,0.2547471]
[1726516768040,23.776884,131.26,131.22,7.8752471]
[1726516768041,23.776884,131.25,131.24,0.3636759]
[1726516768546,31.395884,131.25,131.24,0.3636759]
[1726516769251,51.395884,131.25,131.24,0.3636759]
[1726516770475,23.776884,131.25,131.24,0.3636759]
[1726516770846,20.0,131.28,131.24,0.3636759]